bitfinex/quotes_ETHUSD_20250925
["timestamp","ask_amount","ask_price","bid_price","bid_amount"]
[1758822907358,0.231,3862.5,3861.5,0.44434263]
[1758822907588,2.58923773,3862.2,3860.8,2.59007066]
[1758822907773,2.58939839,3862.0,3860.9,2.59006808]
[1758822908081,2.58954147,3861.7,3860.7,0.4345]
[1758822908283,2.58933195,3862.0,3860.6,0.2311]
[1758822908578,2.82058535,3861.7,3860.7,2.59019984]
[1758822908779,2.82058535,3861.7,3860.5,2.59033803]
[1758822908780,0.231,3861.7,3860.5,2.59033803]
[1758822908947,0.231,3861.7,3860.3,0.002]
[1758822909148,2.5902294,3860.7,3860.3,0.002]
[1758822909369,1.0793726,3861.7,3860.3,0.002]
[1758822909686,2.58993551,3861.1,3860.3,0.002]
[1758822909903,0.231,3861.2,3860.3,0.002]
[1758822910201,2.59008166,3860.9,3860.3,0.002]
[1758822910382,0.1288,3861.0,3860.3,0.1308]
[1758822910743,0.1288,3861.0,3860.4,0.1288]
[1758822910946,2.82048086,3861.8,3860.4,2.88841563]
[1758822911176,0.231,3861.8,3860.5,2.59032851]
[1758822911479,0.1288,3861.5,3860.9,0.1288]
[1758822911687,0.1288,3861.5,3860.9,2.71885414]
[1758822911848,0.1288,3861.5,3861.0,2.59000259]
[1758822912165,7.092,3861.9,3861.1,0.27188026]
[1758822912348,7.092,3861.9,3861.3,0.1288]
[1758822912546,2.158,3861.9,3861.3,0.1288]
[1758822912889,0.1288,3862.0,3861.3,0.1288]
[1758822913069,2.58958591,3861.7,3860.5,2.59028771]
[1758822913246,0.6732,3861.9,3860.6,0.5022409]
[1758822913447,0.792,3861.7,3860.3,0.002]
[1758822913648,2.58997362,3861.1,3860.3,0.002]
[1758822913946,5.164,3861.6,3860.3,0.002]
[1758822914173,4.246776,3861.5,3860.3,0.002]
[1758822914373,4.772841,3861.4,3860.3,0.002]
[1758822914680,2.59040513,3860.4,3860.3,0.002]
[1758822914979,2.54040513,3860.4,3860.3,0.002]
[1758822915185,10.94016413,3860.4,3860.3,0.002]
[1758822915480,17.758421,3860.4,3860.3,0.002]
[1758822915849,12.597027,3860.4,3860.3,0.002]
[1758822916180,25.28654598,3860.4,3860.3,0.002]
[1758822916384,22.44967698,3860.4,3860.3,0.002]
[1758822916545,22.44967698,3860.4,3859.9,1e-08]
[1758822916546,3.38267357,3860.0,3859.9,1e-08]
[1758822916746,20.21767357,3860.0,3859.9,1e-08]
[1758822916945,33.06884557,3860.0,3859.9,1e-08]
[1758822917142,22.90408938,3860.0,3859.9,1e-08]
[1758822917347,14.55230186,3860.0,3859.9,1e-08]
[1758822917585,17.87785086,3860.0,3859.9,1e-08]
[1758822917990,3.38294206,3859.6,3859.5,0.002]
[1758822918287,6.38294206,3859.6,3859.5,0.002]
[1758822918470,10.27435206,3859.6,3859.5,0.002]
[1758822918783,3.23587294,3859.6,3859.5,0.002]
[1758822919290,12.53232594,3859.6,3859.5,0.002]
[1758822919462,0.64493088,3859.6,3859.5,0.002]
[1758822919657,2.159,3860.0,3859.5,0.002]
[1758822919884,13.452801,3859.9,3859.5,0.002]
[1758822920073,5.1695,3859.9,3859.5,0.002]
[1758822920271,2.59094206,3859.6,3859.5,0.002]
[1758822920472,4.931,3859.9,3859.5,0.002]
[1758822920988,7.52175125,3859.9,3859.5,0.002]
[1758822921294,4.931,3859.9,3859.5,0.002]
[1758822922057,4.931,3859.9,3859.6,0.6788]
[1758822922259,4.931,3859.8,3859.5,0.002]
[1758822922458,4.931,3859.7,3859.5,0.002]
[1758822922686,2.59094206,3859.6,3859.5,0.002]
[1758822922895,4.931,3859.7,3859.5,0.002]
[1758822923194,0.1288,3859.6,3859.5,0.002]
[1758822923353,2.159,3859.8,3859.5,0.002]
[1758822923559,0.1288,3859.9,3859.5,3.27179482]
[1758822923792,0.1288,3859.9,3859.6,1.27797327]
[1758822924092,4.93,3860.3,3859.7,2.59087493]
[1758822924398,4.93,3860.3,3859.7,0.1288]
[1758822924562,2.59067538,3860.0,3859.5,0.1308]
[1758822924758,2.59094206,3859.6,3859.5,0.002]
[1758822924997,5.10910431,3859.6,3859.5,0.002]
[1758822925196,16.11947706,3859.6,3859.5,0.002]
[1758822925398,16.91147706,3859.6,3859.5,0.002]
[1758822925696,17.87711006,3859.6,3859.5,0.002]
[1758822925860,14.03246306,3859.6,3859.5,0.002]
[1758822926065,6.62144206,3859.6,3859.5,0.002]
[1758822926299,7.45956713,3859.6,3859.5,0.002]
[1758822926519,17.81658613,3859.6,3859.5,0.002]
[1758822926874,17.81658613,3859.6,3859.1,0.002]
[1758822926875,6.11621061,3859.2,3859.1,0.002]
[1758822927111,3.38415096,3857.8,3855.8,0.2441]
[1758822927316,10.47215096,3857.8,3855.8,0.2441]
[1758822927517,23.04454939,3857.8,3855.8,0.2441]
[1758822927811,26.04454939,3857.8,3855.7,0.6788]
[1758822927997,20.47441239,3857.8,3856.3,0.4347]
[1758822928305,20.47441239,3857.8,3856.2,0.2441]
[1758822928509,35.05090439,3857.8,3856.2,0.2441]
[1758822928810,29.87921139,3857.8,3855.9,0.4347]
[1758822929011,2.59228535,3857.6,3855.9,0.4347]
[1758822929312,7.95321082,3857.6,3857.5,1e-08]
[1758822929513,38.66061082,3857.6,3857.5,1e-08]
[1758822930079,38.12958945,3857.6,3857.5,1e-08]
[1758822930276,0.792,3857.0,3855.6,2.21304966]
[1758822930584,0.792,3856.6,3855.6,2.21304966]
[1758822930810,4.928,3856.5,3855.6,2.21304966]
[1758822931013,2.59334914,3856.1,3855.6,2.21304966]
[1758822931213,2.59345223,3855.9,3855.6,2.21304966]
[1758822931374,4.929,3855.8,3855.6,2.21304966]
[1758822931571,4.928,3855.7,3855.6,2.21304966]
[1758822932011,7.52156277,3855.7,3855.6,2.21304966]
[1758822932314,8.53306572,3855.7,3855.6,2.21304966]
[1758822932508,4.928,3855.7,3855.6,2.21304966]
[1758822933010,4.928,3856.1,3855.6,2.89184966]
[1758822933175,2.59315742,3856.4,3855.6,2.89184966]
[1758822933176,4.928,3856.0,3855.6,2.21304966]
[1758822933374,4.928,3855.9,3855.7,0.6788]
[1758822933697,4.928,3855.8,3855.6,2.21304966]
[1758822934169,4.928,3856.1,3855.7,0.6788]
[1758822934375,4.928,3856.1,3855.8,0.6788]
[1758822934573,4.928,3856.2,3855.6,2.21304966]
[1758822934776,0.1296,3855.8,3855.6,2.21304966]
[1758822934986,0.1296,3856.1,3855.6,2.21304966]
[1758822935186,4.928,3856.0,3855.7,0.6788]
[1758822935385,0.1296,3856.1,3856.0,2.59336099]
[1758822935571,2.572,3856.7,3856.0,0.6788]
[1758822935804,0.1296,3856.8,3856.6,2.5929196]
[1758822936003,4.928,3857.1,3856.7,0.6788]
[1758822936308,4.928,3857.1,3855.7,3.56411312]
[1758822936309,0.2385,3857.0,3855.8,0.6788]
[1758822936483,2.59282903,3856.8,3855.8,0.6788]
[1758822936818,7.088,3856.7,3855.9,0.4347]
[1758822936986,2.59300556,3856.6,3855.7,0.2441]
[1758822937319,7.088,3856.7,3855.8,0.46063495]
[1758822937522,4.927,3857.3,3856.4,2.59303387]
[1758822937679,4.927,3857.3,3856.5,0.6788]
[1758822937878,5.11257863,3857.3,3856.6,0.6788]
[1758822938083,5.11257863,3857.3,3856.7,0.2441]
[1758822938519,2.59255418,3857.2,3856.2,0.2441]
[1758822938819,4.927,3857.3,3856.2,3.16453163]
[1758822938981,4.927,3857.3,3856.2,0.2441]
[1758822939312,4.927,3857.3,3855.9,0.6788]
[1758822939313,2.59262139,3857.1,3855.9,0.6788]
[1758822939516,2.59290079,3856.7,3855.9,0.6788]
[1758822939720,4.927,3856.6,3855.6,4.80664661]
[1758822940027,4.927,3856.6,3855.6,2.21304966]
[1758822940207,2.59316933,3856.3,3855.6,2.21304966]
[1758822940379,4.927,3856.2,3855.6,2.21304966]
[1758822940576,3.18700246,3857.3,3855.7,0.70473562]
[1758822940789,3.155,3857.2,3856.1,2.59329187]
[1758822940990,2.59267898,3857.1,3856.1,2.59329187]
[1758822941214,0.42639607,3857.3,3856.1,0.28373919]
[1758822941448,0.2385,3857.7,3856.7,2.5928699]
[1758822941648,3.429,3857.2,3856.6,3.27173655]
[1758822941801,2.161,3857.5,3856.6,3.27173655]
[1758822941802,4.926,3857.1,3856.6,0.6788]
[1758822942002,2.59271118,3857.0,3856.1,0.2441]
[1758822942244,2.59268861,3857.0,3856.0,0.4347]
[1758822942411,2.59282306,3856.8,3855.7,0.2441]
[1758822942613,4.75389922,3856.7,3855.7,0.2441]
[1758822942857,7.51895752,3856.6,3855.7,0.2441]
[1758822943143,1.30779748,3857.6,3855.8,0.4347]
[1758822943348,3.795,3857.3,3855.9,0.2441]
[1758822943531,3.795,3857.3,3856.0,2.96119348]
[1758822943717,3.795,3857.3,3857.0,2.5926373]
[1758822943916,3.795,3857.3,3857.1,3.27140764]
[1758822944106,7.088,3857.6,3857.3,2.59246969]
[1758822944443,7.088,3857.6,3857.3,0.2441]
[1758822944627,7.088,3857.6,3856.9,0.4347]
[1758822945166,7.088,3857.6,3856.2,3.0]
[1758822945372,7.088,3857.6,3856.0,0.36788]
[1758822945373,0.001,3857.6,3856.6,2.59295752]
[1758822945560,0.001,3857.6,3856.7,0.6788]
[1758822945761,0.001,3857.6,3857.5,2.59235255]
[1758822946138,0.001,3857.6,3857.5,3.29707607]
[1758822946456,0.001,3857.6,3857.5,3.40075255]
[1758822946638,0.001,3857.6,3857.5,1.40771916]
[1758822946830,0.001,3857.6,3857.5,3.40075255]
[1758822947734,0.001,3857.6,3857.5,0.6788]
[1758822947935,0.001,3857.6,3857.2,2.59254967]
[1758822948170,0.001,3857.6,3857.4,2.5923762]
[1758822948338,0.001,3857.6,3857.0,0.4419]
[1758822948542,0.001,3857.6,3856.6,0.2327]
[1758822948777,2.59328816,3857.6,3856.7,2.59288707]
[1758822948972,0.001,3857.6,3856.6,0.2327]
[1758822949170,0.47642584,3857.6,3856.6,0.2327]
[1758822949476,0.47642584,3857.6,3856.8,2.5928038]
[1758822949680,0.47642584,3857.6,3856.9,2.59273785]
[1758822949838,0.001,3857.6,3856.6,0.2327]
[1758822950035,2.59235255,3857.5,3856.6,0.2327]
[1758822950239,0.001,3857.6,3856.6,0.2327]
[1758822950240,2.59330544,3857.6,3856.6,0.2327]
[1758822950465,2.59330544,3857.6,3856.7,2.59288193]
[1758822950848,0.2356,3857.6,3855.9,0.2327]
[1758822951034,2.5925385,3857.3,3856.0,0.6746]
[1758822951239,2.8762199,3857.5,3856.0,0.6746]
[1758822951240,4.923,3857.2,3856.0,0.6746]
[1758822951571,4.923,3857.2,3856.5,2.59302105]
[1758822951872,4.923,3857.2,3856.3,2.82585757]
[1758822952059,4.923,3857.2,3856.4,2.59304441]
[1758822952472,0.001,3857.6,3856.5,0.4419]
[1758822952691,0.001,3857.6,3856.6,2.59295752]
[1758822952897,0.001,3857.6,3856.5,0.4419]
[1758822953187,0.001,3857.6,3856.6,0.2327]
[1758822953379,0.793,3857.6,3856.2,2.5932169]
[1758822953576,2.59266495,3857.1,3856.2,0.2327]
[1758822953794,4.922,3857.1,3856.2,0.2327]
[1758822953997,2.161,3857.0,3856.3,2.59310282]
[1758822954169,2.161,3857.0,3856.2,0.2327]
[1758822954358,2.59275584,3856.9,3855.7,2.82624329]
[1758822954557,4.921,3856.8,3855.7,0.2327]
[1758822954767,4.921,3856.8,3855.6,2.65694966]
[1758822954994,0.792,3856.6,3855.6,2.21504966]
[1758822955291,0.792,3856.4,3855.6,2.21504966]
[1758822955500,2.161,3856.3,3855.6,2.21504966]
[1758822955658,5.28395,3856.2,3855.6,2.21504966]
[1758822955859,4.921,3856.2,3855.6,2.21504966]
[1758822956059,0.792,3856.0,3855.6,2.21504966]
[1758822956286,2.59356277,3855.7,3855.6,2.21504966]
[1758822956701,3.62016277,3855.7,3855.6,2.21504966]
[1758822956875,2.82816277,3855.7,3855.6,2.21504966]
[1758822957269,3.37033527,3855.7,3855.6,2.21504966]
[1758822957598,0.51526938,3856.0,3855.6,2.21504966]
[1758822957895,10.54807876,3855.9,3855.6,2.21504966]
[1758822958101,2.82803076,3855.9,3855.6,2.21504966]
[1758822958260,5.43535958,3856.2,3855.6,2.21504966]
[1758822958700,0.1296,3855.8,3855.6,2.21504966]
[1758822958908,3.38556277,3855.7,3855.6,2.21504966]
[1758822959194,2.59389914,3855.2,3855.1,10.51354566]
[1758822959401,1.0266,3855.2,3855.1,10.51354566]
[1758822959610,7.873,3855.2,3855.1,10.51354566]
[1758822959762,7.081,3855.2,3855.1,10.51354566]
[1758822959960,9.67489914,3855.2,3855.1,10.51354566]
[1758822960254,10.90176791,3855.2,3855.1,10.51354566]
[1758822960423,2.161,3855.2,3855.1,3.16683057]
[1758822960620,13.754823,3855.2,3855.1,3.16683057]
[1758822960857,10.761456,3855.2,3855.1,3.16683057]
[1758822961054,16.59955614,3855.2,3855.1,3.16683057]
[1758822961366,13.06273556,3855.2,3855.1,3.16683057]
[1758822961573,21.27695156,3855.2,3855.1,3.16683057]
[1758822961866,19.11595156,3855.2,3855.1,3.16683057]
[1758822962031,14.19595156,3855.2,3855.1,3.16883057]
[1758822962233,2.59403372,3855.0,3854.9,0.00099]
[1758822962461,37.24701085,3855.0,3854.9,0.00099]
[1758822962757,27.12418985,3855.0,3854.9,0.00099]
[1758822962964,3.38670679,3854.0,3853.9,0.10195807]
[1758822963160,3.38670679,3854.0,3853.1,0.00202454]
[1758822963161,2.59490878,3853.7,3853.1,0.00202454]
[1758822963366,5.59504346,3853.5,3853.1,0.00202454]
[1758822963535,23.034538,3853.4,3853.1,0.00202454]
[1758822963743,2.59524551,3853.2,3853.1,0.00202454]
[1758822963944,3.38731286,3853.1,3853.0,1e-08]
[1758822964145,23.23180686,3853.1,3853.0,1e-08]
[1758822964657,9.39480686,3853.1,3853.0,1e-08]
[1758822964947,0.792,3852.9,3850.6,0.4431]
[1758822965147,3.792,3852.7,3851.1,0.6866]
[1758822965375,0.792,3852.4,3851.1,0.6866]
[1758822965675,1.25030405,3852.8,3851.2,0.71256593]
[1758822965834,2.162,3852.5,3851.3,0.6866]
[1758822966036,0.407082,3853.3,3851.4,0.6866]
[1758822966235,7.02960315,3856.1,3850.9,3.0]
[1758822966236,2.162,3853.5,3851.7,3.0]
[1758822966440,3.848,3853.4,3852.5,2.59567435]
[1758822966650,0.40699267,3854.6,3852.6,0.71255649]
[1758822966886,2.162,3854.5,3852.8,2.59551495]
[1758822967053,2.162,3854.5,3852.7,0.6866]
[1758822967054,1.469,3854.4,3853.2,3.0]
[1758822967245,0.40901632,3855.7,3853.3,0.71255178]
[1758822967246,3.631,3854.3,3853.3,0.71255178]
[1758822967445,0.2253,3854.8,3853.3,0.6866]
[1758822967724,6.10461794,3857.2,3851.9,2.162]
[1758822967725,0.2253,3855.4,3853.4,0.6866]
[1758822967890,2.162,3855.5,3853.6,3.0]
[1758822968179,2.162,3855.5,3853.5,3.30758628]
[1758822968180,1.854,3855.9,3855.2,2.59384094]
[1758822968486,1.854,3855.9,3855.3,0.6866]
[1758822968689,1.854,3855.9,3854.6,0.2435]
[1758822968992,0.2253,3856.2,3854.6,0.2435]
[1758822969200,13.74786305,3855.3,3852.4,0.2435]
[1758822969495,13.74786305,3855.3,3852.5,0.46905717]
[1758822969496,31.51352731,3855.2,3852.5,0.46905717]
[1758822969655,18.271819,3855.1,3852.7,2.59558231]
[1758822969845,0.2253,3855.1,3852.8,0.6866]
[1758822970047,0.2253,3855.7,3854.2,2.59450974]
[1758822970261,0.2253,3855.7,3854.3,0.71254504]
[1758822970481,0.40683114,3856.9,3854.6,3.0]
[1758822970684,2.652,3856.8,3855.3,2.59383186]
[1758822970842,2.652,3856.8,3855.4,0.6866]
[1758822971049,0.2253,3857.8,3855.5,0.71253697]
[1758822971250,2.163,3857.6,3857.5,2.59235255]
[1758822971503,2.163,3857.6,3857.5,3.6866]
[1758822971814,0.2173,3857.6,3854.4,0.3712545]
[1758822971979,8.599807,3857.5,3855.9,3.0]
[1758822972175,0.2173,3857.6,3854.4,2.5332545]
[1758822972176,16.2063686,3857.2,3855.5,0.6866]
[1758822972377,0.792,3857.0,3855.0,0.4431]
[1758822972605,0.792,3856.8,3854.4,0.4431]
[1758822972807,0.6576,3856.7,3854.5,0.7125437]
[1758822973006,0.792,3857.0,3854.8,3.0]
[1758822973192,0.33846214,3856.9,3854.9,1.08379531]
[1758822973377,2.162,3857.4,3855.0,0.71254033]
[1758822973606,2.162,3857.4,3855.3,3.0]
[1758822973809,2.59252724,3857.3,3855.4,0.6866]
[1758822973981,0.2263,3857.6,3856.5,2.59295967]
[1758822974176,0.2263,3857.6,3856.3,2.59315153]
[1758822974177,0.40659843,3857.1,3856.3,0.6866]
[1758822974524,0.40659843,3857.1,3854.9,2.59406734]
[1758822974525,5.303577,3857.0,3855.1,2.59390738]
[1758822974821,8.26858521,3856.9,3855.4,2.59370417]
[1758822974983,8.26858521,3856.9,3855.2,0.6366]
[1758822974984,2.59297213,3856.6,3855.2,0.6366]
[1758822975316,2.59342773,3856.0,3854.5,0.2435]
[1758822975514,0.2253,3855.9,3854.0,0.2435]
[1758822975678,10.998912,3855.8,3854.0,0.2435]
[1758822975873,5.052,3855.7,3854.8,2.59410344]
[1758822976078,7.212,3855.6,3855.1,2.59393806]
[1758822976278,0.2253,3856.5,3855.2,0.2435]
[1758822976515,0.2253,3856.5,3853.0,0.792]
[1758822976516,0.2253,3856.5,3853.6,3.0]
[1758822976703,2.162,3856.5,3855.1,0.2435]
[1758822977011,0.2253,3857.1,3855.2,0.46903899]
[1758822977186,0.2263,3857.6,3855.3,0.2435]
[1758822977387,0.2263,3857.6,3856.8,2.59278611]
[1758822977601,0.001,3857.6,3856.7,2.59285294]
[1758822977780,0.001,3857.6,3856.5,0.2435]
[1758822977781,7.212,3857.5,3856.8,2.59279822]
[1758822978112,2.59265944,3857.1,3855.9,2.59342375]
[1758822978281,0.792,3856.9,3855.7,2.59350269]
[1758822978484,0.2395,3857.0,3855.2,0.26133899]
[1758822978693,7.213,3856.9,3855.9,2.59337032]
[1758822978890,5.05,3856.8,3855.6,0.4419]
[1758822979176,16.646191,3856.7,3855.7,2.59355342]
[1758822979376,0.65855,3856.7,3856.3,2.59315482]
[1758822979609,0.65855,3856.7,3855.4,2.59371382]
[1758822979610,2.161,3857.5,3856.6,2.59292155]
[1758822979818,5.7706,3857.5,3856.9,0.1296]
[1758822979988,0.001,3856.5,3855.8,0.6773]
[1758822980189,0.001,3856.5,3855.2,0.2354]
[1758822980373,0.6053,3856.5,3855.2,0.2354]
[1758822980578,3.19833462,3856.5,3855.2,0.2354]
[1758822980810,0.792,3856.3,3854.7,0.2354]
[1758822980978,0.792,3856.1,3854.7,0.2354]
[1758822981184,0.792,3855.7,3854.1,0.2354]
[1758822981487,0.467,3856.1,3854.2,0.6773]
[1758822981488,5.049,3855.6,3854.2,0.6773]
[1758822981690,1.0315,3855.5,3853.9,0.002]
[1758822982018,3.6053,3856.5,3854.2,2.59453118]
[1758822982177,0.2395,3856.3,3854.3,3.70324504]
[1758822982383,5.052,3856.2,3854.4,0.6773]
[1758822982577,2.161,3856.2,3854.7,3.0]
[1758822982811,5.051,3856.3,3855.9,2.59342314]
[1758822983021,0.6053,3856.5,3855.7,2.59349928]
[1758822983184,4.7542752,3856.2,3855.1,2.59392738]
[1758822983518,2.59350856,3855.8,3854.6,0.6773]
[1758822983723,1.0315,3856.1,3854.6,2.82969615]
[1758822984011,3.38543413,3855.9,3854.1,0.2354]
[1758822984225,0.792,3855.9,3854.2,2.59457215]
[1758822984426,11.755387,3855.8,3854.1,0.2354]
[1758822984580,2.59356277,3855.7,3854.1,0.2354]
[1758822984926,2.59403076,3855.1,3854.0,0.4419]
[1758822985229,0.2395,3855.2,3853.9,0.002]
[1758822985877,0.2395,3855.2,3853.9,2.62271985]
[1758822986081,1.259,3855.6,3854.3,2.59444323]
[1758822986082,2.59384272,3855.3,3854.3,2.59444323]
[1758822986279,2.59396643,3855.1,3854.0,0.2354]
[1758822986534,2.59396643,3855.1,3853.9,0.002]
[1758822986737,0.2395,3855.3,3853.9,0.002]
[1758822986949,0.2395,3855.9,3854.0,0.6773]
[1758822987251,0.896,3855.8,3854.7,2.59418789]
[1758822987543,16.391818,3855.7,3854.1,3.03653468]
[1758822987699,2.59374032,3855.5,3854.2,2.59457215]
[1758822987895,0.2395,3855.4,3854.6,2.59429404]
[1758822988100,7.21,3855.3,3854.1,0.4419]
[1758822988300,7.21,3855.3,3854.0,0.2354]
[1758822988301,25.1820528,3855.2,3853.9,0.002]
[1758822988540,0.792,3854.8,3853.9,0.002]
[1758822988739,2.5943114,3854.6,3853.9,0.002]
[1758822988906,7.208,3854.5,3853.9,0.002]
[1758822989102,11.65953749,3854.4,3853.9,0.002]
[1758822989342,0.792,3854.2,3853.9,0.002]
[1758822989542,3.38670679,3854.0,3853.9,0.002]
[1758822989720,2.59524551,3853.2,3851.5,0.4419]
[1758822989906,0.2395,3853.1,3851.5,0.4419]
[1758822990106,2.59544758,3852.9,3850.8,7.33656849]
[1758822990300,0.1296,3851.9,3851.2,0.1296]
[1758822990503,2.59666069,3851.1,3850.8,7.10116849]
[1758822990701,3.30316069,3851.1,3850.8,7.10116849]
[1758822990949,5.2885,3851.1,3850.8,7.10116849]
[1758822991224,0.467,3851.7,3850.8,7.10116849]
[1758822991436,0.792,3851.8,3850.8,7.10116849]
[1758822991647,2.83542699,3852.2,3851.1,0.76495925]
[1758822991867,5.049,3851.7,3850.8,7.10116849]
[1758822992223,7.209,3851.6,3850.8,7.10116849]
[1758822992462,7.21,3851.5,3851.0,3.14514747]
[1758822992671,7.21,3851.4,3851.0,3.14514747]
[1758822992825,5.046,3851.5,3851.0,1.83274311]
[1758822993023,0.2395,3852.4,3851.6,2.59630714]
[1758822993269,2.162,3852.3,3851.1,0.6773]
[1758822993566,7.207,3852.2,3851.1,0.6773]
[1758822993873,0.467,3853.3,3851.2,0.26136593]
[1758822994036,5.043,3853.2,3851.3,3.2094109]
[1758822994235,0.2395,3853.6,3851.4,0.6773]
[1758822994560,0.467,3854.0,3851.4,0.6773]
[1758822994561,7.211,3853.5,3852.4,2.59577001]
[1758822994749,7.211,3853.5,3852.5,2.59570262]
[1758822994948,0.2395,3853.8,3851.5,0.6773]
[1758822995164,7.209,3853.7,3852.2,0.6773]
[1758822995466,5.049,3853.6,3853.0,2.59532434]
[1758822995761,5.046,3853.9,3852.7,0.6773]
[1758822995959,16.25101454,3855.0,3853.7,2.59484685]
[1758822995960,0.2395,3854.8,3853.7,2.59484685]
[1758822996166,2.59443433,3854.5,3853.1,2.5952642]
[1758822996459,2.59443433,3854.5,3852.9,2.59544758]
[1758822996460,0.2395,3854.8,3853.2,0.6773]
[1758822996671,1.00432015,3855.2,3852.6,3.0]
[1758822996820,0.2395,3855.4,3853.3,0.6773]
[1758822997024,3.16,3855.3,3853.4,0.6773]
[1758822997224,2.163,3855.2,3853.5,0.6773]
[1758822997421,2.4025,3855.2,3853.5,0.6773]
[1758822997820,7.204,3855.1,3853.5,0.6773]
[1758822997934,15.69730863,3855.0,3853.5,0.6773]
[1758822998137,7.203,3854.9,3854.6,2.59429207]
[1758822998337,7.202,3855.0,3854.2,0.2354]
[1758822998541,0.2395,3856.3,3854.3,3.06234987]
[1758822998730,7.202,3855.9,3854.4,0.6773]
[1758822999036,7.202,3855.9,3854.0,0.2354]
[1758822999037,0.2395,3855.8,3854.0,0.2354]
[1758822999237,0.74415,3855.7,3854.0,3.27194943]
[1758822999536,16.0776982,3855.6,3854.0,0.6773]
[1758822999722,2.59380694,3855.4,3854.0,0.6773]
[1758822999923,9.79371013,3855.5,3854.1,2.59462874]
[1758823000123,1.4985,3855.4,3851.7,2.59625619]
[1758823000359,0.792,3854.5,3852.0,2.59605399]
[1758823000661,0.792,3854.5,3851.9,2.59612139]
[1758823000662,13.94550445,3854.4,3852.7,2.59557565]
[1758823000965,13.94550445,3854.4,3852.6,0.2354]
[1758823000966,0.792,3854.2,3852.6,0.2354]
[1758823001170,0.1296,3853.6,3853.0,0.1296]
[1758823001368,4.377,3854.0,3853.1,0.6773]
[1758823001579,4.377,3854.0,3853.7,2.59489081]
[1758823001784,0.2395,3854.8,3853.1,0.6773]
[1758823001974,0.2395,3854.8,3854.1,2.59459596]
[1758823002170,16.25101454,3855.5,3854.3,2.59444896]
[1758823002171,0.2395,3855.4,3854.3,2.59444896]
[1758823002354,0.2395,3855.4,3853.5,0.2354]
[1758823002355,7.199,3855.3,3853.7,0.4419]
[1758823002691,0.467,3855.7,3853.5,0.2354]
[1758823002692,7.9045,3855.2,3853.5,0.2354]
[1758823002885,0.2395,3855.2,3853.7,2.59490878]
[1758823003181,0.2395,3855.2,3854.3,2.59449271]
[1758823003182,7.197,3855.1,3854.3,2.59449271]
[1758823003484,7.197,3855.1,3853.6,0.4419]
[1758823003697,5.03,3855.0,3853.6,0.4419]
[1758823003852,0.2395,3855.2,3853.6,0.4419]
[1758823004186,4.346,3855.1,3853.7,0.2354]
[1758823004492,7.191,3855.0,3853.7,0.2354]
[1758823004694,0.2395,3855.7,3853.7,3.2354]
[1758823004987,0.2395,3855.7,3854.0,3.0]
[1758823004988,2.162,3855.6,3854.0,3.0]
[1758823005150,3.051,3855.6,3854.0,3.0]
[1758823005351,0.001,3856.5,3853.8,0.4419]
[1758823005352,0.2395,3855.9,3853.8,0.4419]
[1758823005559,0.2395,3855.9,3853.2,2.3974]
[1758823005560,0.2395,3855.9,3854.0,2.59470679]
[1758823005752,0.2395,3855.9,3855.4,2.5937083]
[1758823005996,0.7075,3856.5,3855.5,0.02593697]
[1758823006153,0.2405,3856.5,3855.7,2.59355107]
[1758823006353,7.187,3856.4,3855.6,2.59362174]
[1758823006592,7.187,3856.4,3854.8,0.6773]
[1758823006798,7.187,3856.4,3855.7,2.59355187]
[1758823006961,7.187,3856.4,3855.6,2.59361436]
[1758823007159,5.023,3856.3,3855.1,0.2354]
[1758823007368,0.001,3856.5,3855.9,2.59337589]
[1758823007668,0.001,3856.5,3856.0,0.0259336]
[1758823007867,0.001,3856.5,3855.7,0.2354]
[1758823008070,0.001,3856.5,3855.1,0.6977]
[1758823008273,5.673,3856.4,3855.7,2.59355559]
[1758823008468,5.673,3856.4,3855.2,0.40248511]
[1758823008659,0.237,3856.3,3854.9,0.32715107]
[1758823008856,2.676,3856.2,3854.9,0.32715107]
[1758823009100,0.792,3856.0,3854.1,0.2381]
[1758823009320,30.6869,3855.9,3853.5,0.2381]
[1758823009465,2.59383709,3855.3,3853.5,0.2381]
[1758823009794,7.417,3855.2,3854.3,2.59445869]
[1758823010098,7.179,3855.1,3854.5,2.59436356]
[1758823010273,0.9787,3855.2,3854.1,0.4596]
[1758823010274,7.177,3855.0,3854.1,0.4596]
[1758823010607,7.177,3855.0,3853.9,0.2381]
[1758823010763,0.7417,3855.2,3853.5,0.4596]
[1758823010962,0.6869,3855.3,3854.4,2.59437174]
[1758823011202,7.172,3855.2,3854.4,2.59437174]
[1758823011397,0.1296,3855.0,3854.6,2.59424334]
[1758823011565,7.171,3855.1,3854.7,2.5942356]
[1758823011766,7.171,3855.1,3854.0,0.6977]
[1758823011968,5.009,3855.1,3854.7,0.1296]
[1758823012263,7.171,3855.1,3855.0,2.72358802]
[1758823012473,0.238,3856.5,3855.0,0.8273]
[1758823012678,0.238,3856.5,3855.0,2.72361545]
[1758823012679,2.5933929,3856.0,3855.0,2.72361545]
[1758823012902,0.1296,3855.7,3855.0,0.1296]
[1758823013102,7.167,3855.6,3855.0,0.0796]
[1758823013462,0.1296,3855.7,3855.0,2.67363093]
[1758823013761,3.505,3856.1,3855.6,0.1296]
[1758823013964,0.001,3856.5,3855.7,0.6977]
[1758823014180,2.163,3856.5,3856.0,2.72293172]
[1758823014376,2.163,3856.5,3856.3,2.59315067]
[1758823014676,2.163,3856.5,3856.4,3.420392]
[1758823014677,0.001,3856.5,3856.4,3.420392]
[1758823014982,0.001,3856.5,3856.4,4.04767976]